lending/lending_fUSD_20250122
["ID","MTS","AMOUNT","RATE_DAILY","PERIOD"]
[350004714,1737561061476,-528.64240455,0.00021786,2]
[350004715,1737561061485,-500.0,0.00021786,2]
[350004716,1737561061495,-366.29942876,0.00021786,2]
[350004717,1737561061504,-500.0,0.00021786,2]
[350004718,1737561061514,-299.71053218,0.00021786,2]
[350004719,1737561061523,-500.0,0.00021786,2]
[350004720,1737561061533,-500.0,0.00021786,2]
[350004721,1737561061543,-549.65633495,0.00021786,2]
[350004722,1737561061552,-500.0,0.00021786,2]
[350004723,1737561061562,-624.65,0.00021786,2]
[350004724,1737561061572,-500.0,0.00021786,2]
[350004725,1737561061581,-601.86,0.00021786,2]
[350004726,1737561061591,-808.95,0.00021786,2]
[350004727,1737561061601,-1002.72,0.00021786,2]
[350004728,1737561061611,-598.37,0.00021786,2]
[350004729,1737561061621,-500.0,0.00021786,2]
[350004730,1737561061630,-500.0,0.00021786,2]
[350004731,1737561061640,-500.0,0.00021786,2]
[350004732,1737561061649,-500.0,0.00021786,2]
[350004733,1737561061658,-500.0,0.00021786,2]
[350004734,1737561061667,-500.0,0.00021786,2]
[350004735,1737561061677,-500.0,0.00021786,2]
[350004736,1737561061687,-500.0,0.00021786,2]
[350004737,1737561061696,-1011.66,0.00021786,2]
[350004738,1737561061706,-500.0,0.00021786,2]
[350004739,1737561061718,-687.52,0.00021786,2]
[350004740,1737561061727,-907.1,0.00021786,2]
[350004741,1737561061737,-342.78793434,0.00021786,2]
[350004742,1737561061747,-441.7711401,0.00021786,2]
[350004743,1737561061757,-500.0,0.00021786,2]
[350004744,1737561061767,-500.0,0.00021786,2]
[350004745,1737561061776,-490.0,0.00021786,2]
[350004746,1737561061785,-500.0,0.00021786,2]
[350004747,1737561061795,-500.0,0.00021786,2]
[350004748,1737561061805,-560.71,0.00021786,2]
[350004749,1737561061814,-500.0,0.00021786,2]
[350004750,1737561061824,-500.0,0.00021786,2]
[350004751,1737561061834,-500.0,0.00021786,2]
[350004752,1737561061843,-500.0,0.00021786,2]
[350004753,1737561061854,-444.58165864,0.00021786,2]
[350004754,1737561061865,-611.17,0.00021786,2]
[350004755,1737561061875,-500.0,0.00021786,2]
[350004756,1737561061884,-500.0,0.00021786,2]
[350004757,1737561061893,-581.22,0.00021786,2]
[350004758,1737561061903,-500.0,0.00021786,2]
[350004759,1737561061913,-915.57,0.00021786,2]
[350004760,1737561061922,-500.0,0.00021786,2]
[350004761,1737561061933,-500.0,0.00021786,2]
[350004762,1737561061942,-1096.36,0.00021787,2]
[350004763,1737561061951,-500.0,0.00021787,2]
[350004764,1737561061962,-1023.68,0.00021787,2]
[350004765,1737561061972,-846.45,0.00021787,2]
[350004766,1737561061982,-500.0,0.00021787,2]
[350004767,1737561061991,-500.0,0.00021787,2]
[350004768,1737561062000,-500.0,0.00021787,2]
[350004769,1737561062010,-758.97,0.00021787,2]
[350004770,1737561062019,-500.0,0.00021787,2]
[350004771,1737561062028,-504.85,0.00021787,2]
[350004772,1737561062038,-593.05,0.00021787,2]
[350004773,1737561062047,-500.0,0.00021787,2]
[350004774,1737561062057,-150.0,0.00021792,4]
[350004775,1737561062067,-150.0,0.00021795,4]
[350004776,1737561062077,-424.33663619,0.00021796,4]
[350004777,1737561062086,-217.07278203,0.00021796,4]
[350004778,1737561062095,-5434.0,0.000218,2]
[350004779,1737561062105,-150.0,0.00021806,4]
[350004780,1737561062114,-424.33663619,0.00021806,4]
[350004781,1737561062123,-217.07278203,0.00021806,4]
[350004782,1737561062132,-150.0,0.00021807,4]
[350004783,1737561062141,-547.1,0.0002181,2]
[350004784,1737561062150,-969.0,0.00021811,2]
[350004785,1737561062160,-424.33663619,0.00021816,4]
[350004786,1737561062169,-217.07278203,0.00021816,4]
[350004787,1737561062178,-2065.0,0.00021818,2]
[350004788,1737561062187,-150.0,0.0002182,4]
[350004789,1737561062197,-738.23527525,0.00021821,2]
[350004790,1737561062207,-1000.0,0.00021821,2]
[350004791,1737561062218,-206.07062006,0.00021823,3]
[350004792,1737561062227,-424.33663619,0.00021826,4]
[350004793,1737561062236,-217.07278203,0.00021826,4]
[350004794,1737561062245,-150.0,0.00021833,4]
[350004795,1737561062255,-424.33663619,0.00021836,4]
[350004796,1737561062264,-217.07278203,0.00021836,4]
[350004797,1737561062273,-969.0,0.00021838,2]
[350004798,1737561062284,-150.0,0.0002184,4]
[350004799,1737561062294,-424.33663619,0.00021846,4]
[350004800,1737561062304,-150.0,0.00021846,4]
[350004801,1737561062314,-217.07278203,0.00021846,4]
[350004802,1737561062323,-424.33663619,0.00021856,4]
[350004803,1737561062333,-217.07278203,0.00021856,4]
[350004804,1737561062342,-150.0,0.00021859,4]
[350004805,1737561062352,-206.07062006,0.00021862,3]
[350004806,1737561062362,-424.33663619,0.00021866,4]
[350004807,1737561062371,-217.07278203,0.00021866,4]
[350004808,1737561062381,-969.0,0.00021866,2]
[350004809,1737561062391,-283651.0,0.0002187,2]
[350004810,1737561062401,-173.652634,0.0002187,2]
[350004811,1737561062410,-151.0,0.0002187,2]
[350004812,1737561062420,-206.283695,0.0002187,2]
[350004813,1737561062430,-206.283695,0.0002187,2]
[350004814,1737561062440,-334.337677,0.0002187,2]
[350004815,1737561062451,-334.337677,0.0002187,2]
[350004816,1737561062460,-194.853145,0.0002187,2]
[350004817,1737561062473,-194.853145,0.0002187,2]
[350004818,1737561062482,-196.425817,0.0002187,2]
[350004819,1737561062491,-196.425817,0.0002187,2]
[350004820,1737561062501,-274.760227,0.0002187,2]
[350004821,1737561062511,-274.760227,0.0002187,2]
[350004822,1737561062520,-333.110584,0.0002187,2]
[350004823,1737561062530,-333.110584,0.0002187,2]
[350004824,1737561062540,-151.0,0.0002187,2]
[350004825,1737561062550,-151.728684,0.0002187,2]
[350004826,1737561062559,-151.0,0.0002187,2]
[350004827,1737561062570,-151.0,0.0002187,2]
[350004828,1737561062580,-184.98744,0.0002187,2]
[350004829,1737561062589,-151.0,0.0002187,2]
[350004830,1737561062599,-184.98744,0.0002187,2]
[350004831,1737561062609,-169.069636,0.0002187,2]
[350004832,1737561062619,-169.069636,0.0002187,2]
[350004833,1737561062629,-151.0,0.0002187,2]
[350004834,1737561062638,-7316.193718,0.0002187,2]
[350004835,1737561062647,-7316.193718,0.0002187,2]
[350004836,1737561062658,-540.626308,0.0002187,2]
[350004837,1737561062668,-540.626308,0.0002187,2]
[350004838,1737561062677,-201.24,0.00021871,2]
[350004839,1737561062686,-150.0,0.00021871,4]
[350004840,1737561062696,-150.0,0.00021874,4]
[350004841,1737561062706,-424.33663619,0.00021876,4]
[350004842,1737561062718,-217.07278203,0.00021876,4]
[350004843,1737561062727,-150.0,0.00021884,4]
[350004844,1737561062737,-424.33663619,0.00021886,4]
[350004845,1737561062746,-217.07278203,0.00021886,4]
[350004846,1737561062756,-969.0,0.00021893,2]
[350004847,1737561062765,-424.33663619,0.00021896,4]
[350004848,1737561062775,-217.07278203,0.00021896,4]
[350004849,1737561062784,-150.0,0.00021897,4]
[350004850,1737561062794,-66470.0,0.000219,2]
[350004851,1737561062804,-2000.0,0.000219,2]
[350004852,1737561062813,-389.61253116,0.000219,2]
[350004853,1737561062823,-352.78032646,0.000219,2]
[350004854,1737561062832,-193.11044004,0.000219,4]
[350004855,1737561062847,-206.07062006,0.000219,3]
[350004856,1737561062856,-424.33663619,0.00021906,4]
[350004857,1737561062866,-217.07278203,0.00021906,4]
[350004858,1737561062875,-150.0,0.00021908,4]
[350004859,1737561062887,-150.0,0.0002191,4]
[350004860,1737561062896,-424.33663619,0.00021916,4]
[350004861,1737561062905,-217.07278203,0.00021916,4]
[350004862,1737561062916,-500.0,0.00021917,2]
[350004863,1737561062925,-500.0,0.00021917,2]
[350004864,1737561062935,-500.0,0.00021917,2]
[350004865,1737561062944,-500.0,0.00021917,2]
[350004866,1737561062953,-534.61084197,0.00021917,2]
[350004867,1737561062963,-500.0,0.00021917,2]
[350004868,1737561062975,-500.0,0.00021917,2]
[350004869,1737561062984,-500.0,0.00021917,2]
[350004870,1737561062994,-500.0,0.00021917,2]
[350004871,1737561063003,-500.0,0.00021917,3]
[350004872,1737561063012,-500.0,0.00021917,3]
[350004873,1737561063021,-150.0,0.00021918,2]
[350004874,1737561063031,-500.0,0.00021918,2]
[350004875,1737561063040,-982.0,0.00021921,2]
[350004876,1737561063050,-150.0,0.00021923,4]
[350004877,1737561063059,-424.33663619,0.00021926,4]
[350004878,1737561063069,-217.07278203,0.00021926,4]
[350004879,1737561063079,-424.33663619,0.00021935,4]
[350004880,1737561063191,-150.0,0.00021935,4]
[350004881,1737561063212,-217.07278203,0.00021935,4]
[350004882,1737561063225,-150.0,0.00021942,4]
[350004883,1737561063237,-500.0,0.00021945,2]
[350004884,1737561063247,-424.33663619,0.00021945,4]
[350004885,1737561063259,-217.07278203,0.00021945,4]
[350004886,1737561063269,-547.1,0.00021947,2]
[350004887,1737561063279,-150.0,0.00021948,4]
[350004888,1737561063289,-178.660684,0.00021955,2]
[350004889,1737561063299,-424.33663619,0.00021955,4]
[350004890,1737561063308,-217.07278203,0.00021955,4]
[350004891,1737561063318,-534.61,0.00021959,7]
[350004892,1737561063327,-534.61,0.00021959,7]
[350004893,1737561063338,-325.16,0.00021961,2]
[350004894,1737561063348,-500.0,0.00021961,2]
[350004895,1737561063358,-500.0,0.00021961,2]
[350004896,1737561063369,-500.0,0.00021961,2]
[350004897,1737561063379,-466.81784346,0.00021961,2]
[350004898,1737561063390,-500.0,0.00021961,2]
[350004899,1737561063400,-500.0,0.00021961,2]
[350004900,1737561063410,-500.0,0.00021961,2]
[350004901,1737561063420,-483.84,0.00021961,2]
[350004902,1737561063429,-583.68,0.00021961,2]
[350004903,1737561063440,-1913.12,0.00021961,2]
[350004904,1737561063450,-777.39,0.00021961,2]
[350004905,1737561063461,-500.0,0.00021961,2]
[350004906,1737561063474,-734.65,0.00021961,2]
[350004907,1737561063485,-1921.41,0.00021961,2]
[350004908,1737561063495,-500.0,0.00021961,2]
[350004909,1737561063506,-500.0,0.00021961,2]
[350004910,1737561063516,-1387.92,0.00021961,2]
[350004911,1737561063525,-1362.93,0.00021961,2]
[350004912,1737561063535,-1577.83,0.00021961,2]
[350004913,1737561063546,-1021.71,0.00021961,2]
[350004914,1737561063556,-500.0,0.00021961,2]
[350004915,1737561063567,-2067.0,0.00021961,2]
[350004916,1737561063576,-1157.29,0.00021961,2]
[350004917,1737561063586,-1822.39,0.00021961,2]
[350004918,1737561063596,-1240.96,0.00021961,2]
[350004919,1737561063606,-500.0,0.00021961,2]
[350004920,1737561063616,-1071.01,0.00021961,2]
[350004921,1737561063626,-226.9483134,0.00021961,2]
[350004922,1737561063636,-659.8,0.00021961,2]
[350004923,1737561063646,-500.0,0.00021961,2]
[350004924,1737561063656,-3026.04,0.00021961,2]
[350004925,1737561063666,-500.0,0.00021961,2]
[350004926,1737561063676,-500.0,0.00021961,2]
[350004927,1737561063686,-724.78,0.00021961,2]
[350004928,1737561063697,-1386.84,0.00021961,2]
[350004929,1737561063707,-500.0,0.00021961,2]
[350004930,1737561063720,-500.0,0.00021961,2]
[350004931,1737561063729,-150.0,0.00021961,4]
[350004932,1737561063739,-424.33663619,0.00021965,4]
[350004933,1737561063749,-217.07278203,0.00021965,4]
[350004934,1737561063759,-700.0,0.0002197,2]
[350004935,1737561063769,-700.0,0.0002197,2]
[350004936,1737561063779,-700.0,0.0002197,2]
[350004937,1737561063788,-700.0,0.0002197,2]
[350004938,1737561063798,-700.0,0.0002197,2]
[350004939,1737561063807,-700.0,0.0002197,2]
[350004940,1737561063817,-750.0,0.0002197,2]
[350004941,1737561063827,-500.0,0.0002197,2]
[350004942,1737561063837,-500.0,0.0002197,2]
[350004943,1737561063847,-500.0,0.0002197,2]
[350004944,1737561063861,-500.0,0.0002197,2]
[350004945,1737561063871,-703.02579283,0.0002197,2]
[350004946,1737561063882,-500.0,0.00021973,2]
[350004947,1737561063892,-150.0,0.00021974,4]
[350004948,1737561063903,-424.33663619,0.00021975,4]
[350004949,1737561063912,-217.07278203,0.00021975,4]
[350004950,1737561063922,-150.0,0.00021976,4]
[350004951,1737561063933,-89109.00954858,0.0002198,2]
[350004952,1737561063942,-295893.34580095,0.0002198,2]
[350004953,1737561063952,-20113.06,0.0002198,5]
[350004954,1737561063962,-17805.53758993,0.0002198,2]
[350004955,1737561063977,-151.0,0.00021985,7]
[350004956,1737561063987,-206.283695,0.00021985,7]
[350004957,1737561063998,-206.283695,0.00021985,7]
[350004958,1737561064007,-13325.5141419,0.00021985,2]
[350004959,1737561064018,-10378.3781656,0.00021985,2]
[350004960,1737561064027,-7431.2421892,0.00021985,2]
[350004961,1737561064037,-4484.1062129,0.00021985,2]
[350004962,1737561064047,-1536.9702366,0.00021985,2]
[350004963,1737561064056,-1436.4488835,0.00021985,2]
[350004964,1737561064066,-1118.7568126,0.00021985,2]
[350004965,1737561064075,-801.0647418,0.00021985,2]
[350004966,1737561064085,-483.3726709,0.00021985,2]
[350004967,1737561064095,-165.6806001,0.00021985,2]
[350004968,1737561064104,-334.337677,0.00021985,7]
[350004969,1737561064114,-334.337677,0.00021985,7]
[350004970,1737561064123,-6265.4920362,0.00021985,2]
[350004971,1737561064132,-4879.7851289,0.00021985,2]
[350004972,1737561064142,-3494.0782216,0.00021985,2]
[350004973,1737561064152,-2108.3713144,0.00021985,2]
[350004974,1737561064162,-722.6644071,0.00021985,2]
[350004975,1737561064172,-194.853145,0.00021985,7]
[350004976,1737561064182,-194.853145,0.00021985,7]
[350004977,1737561064192,-196.425817,0.00021985,7]
[350004978,1737561064201,-196.425817,0.00021985,7]
[350004979,1737561064212,-274.760227,0.00021985,7]
[350004980,1737561064227,-274.760227,0.00021985,7]
[350004981,1737561064237,-333.110584,0.00021985,7]
[350004982,1737561064247,-333.110584,0.00021985,7]
[350004983,1737561064257,-151.0,0.00021985,7]
[350004984,1737561064267,-151.0,0.00021985,7]
[350004985,1737561064277,-184.98744,0.00021985,7]
[350004986,1737561064286,-151.0,0.00021985,7]
[350004987,1737561064296,-184.98744,0.00021985,7]
[350004988,1737561064306,-169.069636,0.00021985,7]
[350004989,1737561064315,-169.069636,0.00021985,7]
[350004990,1737561064325,-151.0,0.00021985,7]
[350004991,1737561064334,-7316.193718,0.00021985,7]
[350004992,1737561064343,-7316.193718,0.00021985,7]
[350004993,1737561064352,-180.0052096,0.00021985,2]
[350004994,1737561064362,-180.0052096,0.00021985,2]
[350004995,1737561064372,-180.0052096,0.00021985,2]
[350004996,1737561064381,-180.0052096,0.00021985,2]
[350004997,1737561064390,-180.0052096,0.00021985,2]
[350004998,1737561064399,-540.626308,0.00021985,7]
[350004999,1737561064409,-540.626308,0.00021985,7]
[350005000,1737561064418,-424.33663619,0.00021985,4]
[350005001,1737561064428,-217.07278203,0.00021985,4]
[350005002,1737561064437,-150.0,0.00021987,4]
[350005003,1737561064446,-152.0,0.00021988,4]
[350005004,1737561064456,-150.0,0.00021989,4]
[350005005,1737561064466,-5050.0,0.0002199,35]
[350005006,1737561064478,-424.33663619,0.00021995,4]
[350005007,1737561064488,-217.07278203,0.00021995,4]
[350005008,1737561064498,-4584.67144021,0.00021998,2]
[350005009,1737561064507,-231.1123877,0.00021998,15]
[350005010,1737561064516,-10897.79578385,0.00021998,2]
[350005011,1737561064783,-3022.97406845,0.00021998,2]
[350005012,1737561065217,-500.0,0.00020865,2]
[350005013,1737561065226,-500.0,0.00020865,2]
[350005014,1737561065236,-500.0,0.00021139,2]
[350005015,1737561065246,-500.0,0.00021413,2]
[350005016,1737561065255,-1106.0,0.00021503,2]
[350005017,1737561065265,-500.0,0.00021687,2]
[350005018,1737561065274,-500.0,0.00021961,2]
[350005019,1737561065284,-8641.99036563,0.00021998,2]
[350005020,1737561065295,-1043.0,0.00021998,2]
[350005021,1737561065386,-10538.15550921,0.00021998,2]
[350005022,1737561065397,-5356.191,0.00021998,2]
[350005023,1737561065413,-25008.17307602,0.00021998,2]
[350005024,1737561065424,-1938.6818734,0.00021998,2]
[350005025,1737561065435,-1843.63850259,0.00021998,2]
[350005026,1737561065451,-191599.44817202,0.00021998,2]
[350005027,1737561065460,-27837.11453661,0.00021998,2]
[350005028,1737561065471,-53855.16562137,0.00021998,2]
[350005029,1737561065484,-193418.89304368,0.00021998,2]
[350005030,1737561065494,-594.11928071,0.00021998,2]
[350005031,1737561065503,-151.0,0.00021998,7]
[350005032,1737561065513,-206.283695,0.00021998,7]
[350005033,1737561065522,-206.283695,0.00021998,7]
[350005034,1737561065532,-334.337677,0.00021998,7]
[350005035,1737561065542,-334.337677,0.00021998,7]
[350005036,1737561065551,-194.853145,0.00021998,7]
[350005037,1737561065561,-194.85315,0.00021998,7]
[350005038,1737561065572,-196.425817,0.00021998,7]
[350005039,1737561065582,-196.425809,0.00021998,7]
[350005040,1737561065592,-274.760227,0.00021998,7]
[350005041,1737561065601,-274.760232,0.00021998,7]
[350005042,1737561065611,-333.110584,0.00021998,7]
[350005043,1737561065621,-333.110574,0.00021998,7]
[350005044,1737561065631,-151.0,0.00021998,7]
[350005045,1737561065640,-184.98744,0.00021998,7]
[350005046,1737561065649,-184.987445,0.00021998,7]
[350005047,1737561065659,-169.069636,0.00021998,7]
[350005048,1737561065669,-169.069636,0.00021998,7]
[350005049,1737561065679,-151.0,0.00021998,7]
[350005050,1737561065688,-7316.193718,0.00021998,7]
[350005051,1737561065698,-7316.193726,0.00021998,7]
[350005052,1737561065707,-540.626308,0.00021998,7]
[350005053,1737561065717,-540.626318,0.00021998,7]
[350005054,1737561065727,-3549.0,0.00021999,2]
[350005055,1737561065737,-1001.0949,0.00021999,2]
[350005056,1737561065747,-2000.0,0.00021999,2]
[350005057,1737561065757,-2000.0,0.00021999,2]
[350005058,1737561065767,-2000.0,0.00021999,2]
[350005059,1737561065776,-150.0,0.00022,4]
[350005060,1737561065786,-4502.0,0.00022,7]
[350005061,1737561065795,-2500.0,0.00022,2]
[350005062,1737561065805,-1800.0,0.00022,23]
[350005063,1737561065814,-1047064.42110947,0.00022,2]
[350005064,1737561065937,-500.0,0.00020962,2]
[350005065,1737561065948,-500.0,0.00020962,2]
[350005066,1737561065958,-184.0,0.00021503,2]
[350005067,1737561065969,-158.78,0.00021503,2]
[350005068,1737561065979,-1911.77344357,0.00022,2]
[350005069,1737561406562,201.46,0.00012329,2]
[350005129,1737561549165,151.33,0.00010137,2]
[350005133,1737562163113,-550.0,0.00015,2]
[350005134,1737562185360,177.13,0.00024,120]
[350005141,1737562232016,-965.45,0.00016784,2]
[350005143,1737562232027,-151.33,0.00016813,2]
[350005144,1737562232036,-600.0,0.00017,2]
[350005145,1737562232045,-2204.378979,0.00018355,2]
[350005146,1737562232055,-32.42102103,0.00018447,2]
[350005147,1737562232124,-247.73729774,0.00018447,2]
[350005148,1737562232134,-300.0,0.00018447,2]
[350005149,1737562232143,-270.09510226,0.00018448,2]
[350005150,1737562232181,-7424.61739478,0.00018448,2]
[350005151,1737562232190,-10957.12,0.00018535,2]
[350005152,1737562232199,-500.0,0.00018548,2]
[350005153,1737562232214,-500.0,0.00018548,2]
[350005154,1737562232223,-200.0,0.00018824,2]
[350005155,1737562232232,-2751.0,0.00018865,2]
[350005156,1737562232241,-250.0,0.00018879,2]
[350005157,1737562232251,-19534.47,0.00018907,2]
[350005158,1737562232260,-200.0,0.00018963,2]
[350005159,1737562232269,-650.0,0.00019,2]
[350005160,1737562232278,-965.45,0.00019048,2]
[350005161,1737562232288,-270.87,0.0001909,2]
[350005162,1737562232297,-250.0,0.0001911,2]
[350005163,1737562232307,-155.24,0.00019182,30]
[350005164,1737562232316,-169.97,0.00019195,2]
[350005165,1737562232324,-187.44,0.00019385,2]
[350005166,1737562232333,-174.95,0.00019393,2]
[350005167,1737562232344,-250.0,0.00019401,2]
[350005168,1737562232352,-1000.0,0.00019439,2]
[350005169,1737562232361,-1500.0,0.00019466,2]
[350005170,1737562232370,-317.1,0.00019613,2]
[350005171,1737562232380,-500.0,0.00019644,2]
[350005172,1737562232389,-1798.55,0.000197,2]
[350005173,1737562232398,-241.91,0.00019803,2]
[350005174,1737562232408,-780.191,0.00019827,2]
[350005175,1737562232417,-163.04738686,0.00019827,2]
[350005176,1737562232427,-210.10702634,0.000199,2]
[350005177,1737562232436,-412.1652,0.00019942,2]
[350005178,1737562232447,-151.0,0.00019974,2]
[350005179,1737562232457,-346.91042057,0.00019985,2]
[350005180,1737562232466,-50468.72,0.00019986,2]
[350005181,1737562232475,-300.0,0.0002,2]
[350005182,1737562232485,-300.0,0.0002,2]
[350005183,1737562232494,-300.0,0.0002,2]
[350005184,1737562232503,-300.0,0.0002,2]
[350005185,1737562232513,-528.52977757,0.0002,2]
[350005186,1737562232522,-92715.0,0.00020042,2]
[350005187,1737562232532,-270.87,0.00020045,2]
[350005188,1737562232541,-420.0,0.00020119,2]
[350005189,1737562232550,-210.10702633,0.00020122,2]
[350005190,1737562232559,-169.97,0.00020142,2]
[350005191,1737562232569,-288.8193,0.0002029,2]
[350005192,1737562232578,-724.6335,0.0002029,2]
[350005193,1737562232588,-2349.0,0.000203,2]
[350005194,1737562232597,-210.10702633,0.00020344,2]
[350005195,1737562232606,-953.46916086,0.0002041,2]
[350005196,1737562232616,-2500.0,0.0002041,2]
[350005197,1737562232626,-1027.7,0.00020509,2]
[350005198,1737562232635,-659.98,0.00020509,2]
[350005199,1737562232644,-500.0,0.00020509,2]
[350005200,1737562232653,-1613.38,0.00020509,2]
[350005202,1737562232662,-627.91,0.00020509,2]
[350005204,1737562232672,-1613.72,0.00020509,2]
[350005205,1737562232681,-1119.6,0.00020509,2]
[350005207,1737562232691,-863.99,0.00020509,2]
[350005209,1737562232700,-1269.95,0.00020509,2]
[350005211,1737562232709,-1735.18,0.00020509,2]
[350005213,1737562232718,-500.0,0.00020509,2]
[350005215,1737562232727,-975.45,0.00020509,2]
[350005216,1737562232737,-1463.56,0.00020509,2]
[350005217,1737562232746,-500.0,0.00020509,2]
[350005218,1737562232755,-1003.26,0.00020509,2]
[350005219,1737562232765,-500.0,0.00020509,2]
[350005220,1737562232774,-570.38,0.00020509,2]
[350005221,1737562232783,-905.95,0.00020509,2]
[350005222,1737562232793,-500.0,0.00020509,2]
[350005223,1737562232802,-1118.75,0.00020509,2]
[350005224,1737562232811,-2432.23,0.00020509,2]
[350005225,1737562232820,-594.62,0.00020509,2]
[350005226,1737562232830,-500.0,0.00020509,2]
[350005227,1737562232839,-500.0,0.00020509,2]
[350005228,1737562232849,-500.0,0.00020509,2]
[350005229,1737562232858,-1697.78,0.00020509,2]
[350005230,1737562232868,-500.0,0.00020509,2]
[350005231,1737562232877,-696.37,0.00020509,2]
[350005232,1737562232887,-3279.37,0.00020509,2]
[350005233,1737562232897,-1139.03,0.00020509,2]
[350005234,1737562232906,-131360.74946277,0.0002051,2]
[350005235,1737562232915,-210.10702633,0.00020567,2]
[350005236,1737562232925,-953.46916084,0.00020576,2]
[350005237,1737562232935,-369.08426457,0.00020664,2]
[350005238,1737562232945,-307.23134397,0.0002067,2]
[350005239,1737562232955,-8174.1399,0.00020713,2]
[350005240,1737562232964,-500.0,0.0002074,2]
[350005241,1737562232973,-500.0,0.0002074,2]
[350005242,1737562232983,-953.46916084,0.00020741,2]
[350005243,1737562232992,-1661.5299,0.00020764,2]
[350005244,1737562233001,-585.0797,0.00020764,2]
[350005245,1737562233011,-5000.0,0.00020764,2]
[350005246,1737562233020,-930.9414,0.00020765,2]
[350005247,1737562233030,-500.0,0.00020765,2]
[350005248,1737562233039,-55555.0,0.00020765,2]
[350005249,1737562233049,-177.68,0.00020771,2]
[350005250,1737562233059,-1027.7,0.00020783,2]
[350005251,1737562233069,-659.98,0.00020783,2]
[350005252,1737562233079,-1613.38,0.00020783,2]
[350005253,1737562233088,-627.91,0.00020783,2]
[350005254,1737562233098,-1613.72,0.00020783,2]
[350005255,1737562233107,-1119.6,0.00020783,2]
[350005256,1737562233117,-863.99,0.00020783,2]
[350005257,1737562233126,-1269.95,0.00020783,2]
[350005258,1737562233136,-1735.18,0.00020783,2]
[350005259,1737562233145,-500.0,0.00020783,2]
[350005260,1737562233154,-975.45,0.00020783,2]
[350005261,1737562233171,-1463.56,0.00020783,2]
[350005262,1737562233180,-1003.26,0.00020783,2]
[350005263,1737562233189,-570.38,0.00020783,2]
[350005264,1737562233199,-905.95,0.00020783,2]
[350005265,1737562233211,-500.0,0.00020783,2]
[350005266,1737562233220,-1118.75,0.00020783,2]
[350005267,1737562233230,-2432.23,0.00020783,2]
[350005268,1737562233239,-594.62,0.00020783,2]
[350005269,1737562233250,-500.0,0.00020783,2]
[350005270,1737562233260,-500.0,0.00020783,2]
[350005271,1737562233270,-500.0,0.00020783,2]
[350005272,1737562233279,-1697.78,0.00020783,2]
[350005273,1737562233289,-696.37,0.00020783,2]
[350005274,1737562233299,-3279.37,0.00020783,2]
[350005275,1737562233308,-200.0,0.00020786,2]
[350005276,1737562233318,-210.10702633,0.00020789,2]
[350005277,1737562233327,-200.0,0.0002079,2]
[350005278,1737562233336,-369.08426456,0.00020801,2]
[350005279,1737562233346,-636.000004,0.00020802,2]
[350005280,1737562233355,-200.0,0.0002081,2]
[350005281,1737562233364,-200.0,0.00020812,2]
[350005282,1737562233374,-29960.202,0.00020813,2]
[350005283,1737562233383,-200.0,0.00020826,2]
[350005284,1737562233392,-550.13158576,0.00020829,2]
[350005285,1737562233403,-636.000004,0.00020833,2]
[350005286,1737562233412,-636.000004,0.00020847,2]
[350005287,1737562233422,-550.13158576,0.00020854,2]
[350005288,1737562233431,-200.0,0.00020855,2]
[350005289,1737562233441,-500.0,0.00020861,2]